bitfinex/quotes_SOLUSD_20260208
["timestamp","ask_amount","ask_price","bid_price","bid_amount"]
[1770521368993,3.54350128,87.494,87.472,3.54661278]
[1770521375693,3.54350128,87.494,87.474,3.44267011]
[1770521386714,3.50930575,87.492,87.46,0.2]
[1770521386899,3.50930575,87.479,87.46,0.2]
[1770521387819,3.50930575,87.517,87.475,3.44267011]
[1770521388000,3.50930575,87.517,87.481,3.44267011]
[1770521388914,3.50930575,87.515,87.481,3.44267011]
[1770521389215,3.50930575,87.499,87.47,3.44267011]
[1770521391500,3.50930575,87.497,87.47,3.44267011]
[1770521391998,3.50930575,87.489,87.461,3.44267011]
[1770521393614,11.43013899,87.488,87.461,3.44267011]
[1770521393917,3.50930575,87.487,87.461,3.44267011]
[1770521395918,3.50930575,87.485,87.461,3.44267011]
[1770521399619,3.50930575,87.483,87.461,3.44267011]
[1770521401325,1.96311258,87.488,87.465,3.44267011]
[1770521401525,4.02187183,87.48,87.46,0.2]
[1770521401738,4.02187183,87.48,87.43,4.22187183]
[1770521401739,4.02187183,87.46,87.43,0.2]
[1770521402028,4.02187183,87.48,87.43,0.2]
[1770521402029,4.02187183,87.45,87.43,0.2]
[1770521403239,3.50930575,87.437,87.392,3.44267011]
[1770521403423,3.50930575,87.429,87.392,3.44267011]
[1770521405826,3.59923646,87.419,87.392,3.44267011]
[1770521407229,3.59923646,87.419,87.38,4.22187183]
[1770521407230,3.59923646,87.417,87.383,3.65431134]
[1770521407419,3.59923646,87.409,87.383,3.65431134]
[1770521407619,3.59923646,87.409,87.387,3.65431134]
[1770521407819,3.59923646,87.409,87.39,3.85431134]
[1770521410769,11.4392082,87.419,87.39,3.85431134]
[1770521410910,11.4392082,87.539,87.39,3.85431134]
[1770521410911,3.59923646,87.439,87.401,3.65431134]
[1770521411115,3.59923646,87.439,87.411,3.65431134]
[1770521411430,3.59923646,87.439,87.421,3.65431134]
[1770521412833,3.50061479,87.449,87.421,3.65431134]
[1770521415029,3.50061479,87.447,87.421,3.65431134]
[1770521415629,3.50061479,87.429,87.391,3.3865969]
[1770521416034,3.50061479,87.427,87.393,3.3865969]
[1770521420541,3.50061479,87.427,87.395,3.3865969]
[1770521421124,3.50061479,87.427,87.401,3.3865969]
[1770521422245,3.50061479,87.427,87.403,3.3865969]
[1770521424452,3.50061479,87.427,87.405,3.3865969]
[1770521427137,3.50061479,87.419,87.395,3.3865969]
[1770521427954,3.50061479,87.399,87.377,3.3865969]
[1770521429039,3.50061479,87.399,87.38,3.5865969]
[1770521432248,3.50061479,87.399,87.38,0.2]
[1770521432447,3.50061479,87.389,87.38,0.2]
[1770521432832,3.50061479,87.389,87.37,0.2]
[1770521433037,3.50061479,87.379,87.354,11.44754832]
[1770521433535,3.50061479,87.379,87.354,3.3865969]
[1770521434152,3.50061479,87.369,87.34,0.2]
[1770521434352,3.50061479,87.369,87.34,3.5865969]
[1770521435143,3.50061479,87.369,87.34,15.03601682]
[1770521435351,3.50061479,87.369,87.341,3.3865969]
[1770521436547,3.50061479,87.369,87.341,14.83597348]
[1770521436751,3.50061479,87.369,87.342,3.62831659]
[1770521437253,3.67560927,87.367,87.34,0.2]
[1770521437465,3.67560927,87.359,87.34,0.2]
[1770521438552,3.67560927,87.357,87.34,0.2]
[1770521438854,3.67560927,87.349,87.33,0.2]
[1770521439857,3.67560927,87.349,87.32,0.2]
[1770521440536,15.12401117,87.349,87.32,0.2]
[1770521440742,3.67560927,87.348,87.32,0.2]
[1770521441262,3.67560927,87.339,87.32,0.2]
[1770521442040,3.67560927,87.339,87.32,3.82831659]
[1770521442459,3.67560927,87.339,87.32,0.2]
[1770521442648,3.67560927,87.339,87.32,3.82831659]
[1770521444463,3.67560927,87.329,87.312,3.62831659]
[1770521445665,3.67560927,87.346,87.317,3.62831659]
[1770521445868,3.67560927,87.35,87.321,3.62831659]
[1770521446163,3.67560927,87.377,87.341,3.62831659]
[1770521446464,3.67560927,87.383,87.351,3.62831659]
[1770521447458,3.67560927,87.39,87.361,3.62831659]
[1770521449956,3.67560927,87.404,87.371,3.62831659]
[1770521450161,11.29326815,87.42,87.381,3.62831659]
[1770521450363,11.29326815,87.42,87.383,3.62831659]
[1770521450364,3.67560927,87.41,87.383,3.62831659]
[1770521451469,3.67560927,87.419,87.391,3.62831659]
[1770521452156,3.67560927,87.419,87.4,7.65823072]
[1770521452468,3.67560927,87.409,87.351,3.62831659]
[1770521452668,3.67560927,87.399,87.366,3.62831659]
[1770521456071,3.67560927,87.397,87.366,3.62831659]
[1770521460371,3.67560927,87.397,87.368,3.62831659]
[1770521460670,3.67560927,87.418,87.381,3.62831659]
[1770521461258,3.67560927,87.409,87.381,3.62831659]
[1770521462380,3.67560927,87.409,87.383,3.62831659]
[1770521462872,3.67560927,87.409,87.348,5.13032502]
[1770521462873,3.67560927,87.399,87.374,3.62831659]
[1770521463056,3.67560927,87.399,87.375,3.62831659]
[1770521463882,7.26335402,87.42,87.348,5.13032502]
[1770521463883,3.67560927,87.412,87.379,3.62831659]
[1770521465481,3.67560927,87.412,87.383,3.62831659]
[1770521467475,3.67560927,87.412,87.371,40.05905849]
[1770521467476,3.67560927,87.412,87.385,3.64854384]
[1770521469885,3.67560927,87.412,87.387,3.64854384]
[1770521470885,3.45159756,87.419,87.387,3.64854384]
[1770521471288,3.45159756,87.429,87.391,3.64854384]
[1770521471466,3.45159756,87.429,87.393,3.64854384]
[1770521473296,3.45159756,87.429,87.401,3.81070943]
[1770521473793,3.45159756,87.429,87.403,3.81070943]
[1770521474979,3.8049664,87.441,87.403,3.81070943]
[1770521476197,3.8049664,87.439,87.405,3.81070943]
[1770521478603,3.8049664,87.437,87.405,3.81070943]
[1770521479006,3.8049664,87.437,87.407,3.81070943]
[1770521481304,3.8049664,87.435,87.407,3.81070943]
[1770521485398,3.8049664,87.433,87.407,3.81070943]
[1770521485593,3.8049664,87.419,87.37,3.81070943]
[1770521485794,3.8049664,87.409,87.374,3.81070943]
[1770521485986,3.8049664,87.409,87.375,3.81070943]
[1770521487592,3.8049664,87.399,87.368,3.81070943]
[1770521488619,3.8049664,87.397,87.368,3.81070943]
[1770521489303,3.8049664,87.409,87.371,3.81070943]
[1770521490306,3.8049664,87.408,87.371,3.81070943]
[1770521490495,3.8049664,87.408,87.373,3.81070943]
[1770521491914,3.8049664,87.406,87.375,3.81070943]
[1770521494109,3.8049664,87.406,87.377,3.81070943]
[1770521496595,3.8049664,87.406,87.379,3.80842886]
[1770521497204,11.43783121,87.43,87.391,3.80842886]
[1770521497389,3.69857925,87.429,87.391,3.80842886]
[1770521498600,3.69857925,87.429,87.393,3.80842886]
[1770521500299,3.69857925,87.427,87.393,3.80842886]
[1770521502118,3.69857925,87.427,87.395,3.80842886]
[1770521503010,3.69857925,87.427,87.362,5.13032502]
[1770521503319,3.69857925,87.427,87.39,4.02900009]
[1770521504220,3.69857925,87.427,87.394,11.44243311]
[1770521504418,3.69857925,87.427,87.4,4.02900009]
[1770521504920,3.69857925,87.427,87.402,2.48208432]
[1770521508220,3.69857925,87.427,87.404,2.48503297]
[1770521509504,3.69857925,87.427,87.406,2.48924234]
[1770521511825,3.69857925,87.427,87.407,13.93408686]
[1770521512627,3.69857925,87.427,87.407,2.49335557]
[1770521518525,3.69857925,87.427,87.408,11.4406004]
[1770521518722,3.69857925,87.427,87.409,2.50702601]
[1770521520427,3.69857925,87.461,87.421,2.51073305]
[1770521520631,3.69857925,87.456,87.44,4.02643382]
[1770521520824,11.43311,87.466,87.438,2.51073305]
[1770521521028,10.95478014,87.455,87.438,2.51073305]
[1770521521219,3.69857925,87.454,87.423,2.51073305]
[1770521521419,3.69857925,87.454,87.422,11.43876827]
[1770521521936,3.69857925,87.454,87.423,2.51255471]
[1770521523037,3.69857925,87.454,87.425,2.51435543]
[1770521525139,3.69857925,87.454,87.427,2.51789508]
[1770521527228,3.69857925,87.454,87.42,4.02643382]
[1770521527229,3.69857925,87.454,87.429,2.52305354]
[1770521534357,3.69857925,87.454,87.431,2.53749836]
[1770521535848,3.69857925,87.454,87.433,2.53901259]
[1770521539447,3.69857925,87.454,87.435,2.54489756]
[1770521539628,10.84785031,87.455,87.435,2.54489756]
[1770521540432,3.59164942,87.454,87.435,2.54489756]
[1770521541150,7.25620089,87.455,87.435,2.54489756]
[1770521541750,3.59164942,87.479,87.441,2.54773962]
[1770521542939,3.59164942,87.479,87.443,2.54913621]
[1770521544958,3.59164942,87.459,87.422,2.55188146]
[1770521545148,3.59164942,87.459,87.423,40.03523099]
[1770521545355,3.59164942,87.459,87.424,2.55188146]
[1770521547150,3.59164942,87.459,87.426,2.55456401]
[1770521548058,3.59164942,87.458,87.426,2.55456401]
[1770521548256,3.59164942,87.449,87.412,2.55588222]
[1770521548742,3.59164942,87.449,87.417,2.55718529]
[1770521551645,3.59164942,87.448,87.417,2.55718529]
[1770521555960,3.59164942,87.448,87.418,11.43929167]
[1770521556167,3.59164942,87.448,87.419,2.56708523]
[1770521565971,3.65715076,87.452,87.421,2.57824037]
[1770521566162,3.65715076,87.456,87.421,2.57824037]
[1770521567571,3.65715076,87.456,87.422,40.03568895]
[1770521567776,3.65715076,87.456,87.423,2.58032088]
[1770521570280,3.65715076,87.456,87.425,2.58235387]
[1770521571574,3.65715076,87.456,87.427,2.58434043]
[1770521573783,3.65715076,87.456,87.429,2.58628161]
[1770521575991,3.65715076,87.456,87.431,2.58817846]
[1770521576981,4.02415193,87.47,87.431,2.58817846]
[1770521577160,3.65715076,87.469,87.431,2.58817846]
[1770521577365,3.65715076,87.469,87.441,2.59003199]
[1770521577678,11.4312656,87.48,87.441,2.59003199]
[1770521577882,3.65715076,87.479,87.443,2.59003199]
[1770521580084,3.65715076,87.479,87.445,2.59184318]
[1770521580283,3.65715076,87.487,87.461,2.5927332]
[1770521580482,3.65715076,87.497,87.461,2.5927332]
[1770521581278,3.65715076,87.516,87.481,2.5927332]
[1770521581881,3.65715076,87.516,87.445,1.14357596]
[1770521581882,3.65715076,87.516,87.491,2.593613]
[1770521582071,3.85715076,87.53,87.502,2.593613]
[1770521582275,0.2,87.55,87.516,3.1038516]
[1770521582590,4.22415193,87.55,87.516,3.1038516]
[1770521582881,0.2,87.55,87.516,3.1038516]
[1770521583190,4.22415193,87.55,87.516,3.1038516]
[1770521583897,4.22415193,87.55,87.518,3.76296872]
[1770521584266,3.65715076,87.539,87.518,3.76296872]
[1770521584589,3.65715076,87.539,87.511,3.76296872]
[1770521584778,3.65715076,87.539,87.515,11.4265477]
[1770521585189,3.65715076,87.539,87.515,15.18951642]
[1770521585377,3.65715076,87.539,87.516,3.76296872]
[1770521587993,0.1,87.54,87.518,3.53958507]
[1770521588400,3.55539162,87.539,87.518,3.53958507]
[1770521588904,3.55539162,87.539,87.508,3.53958507]
[1770521589782,3.55539162,87.529,87.502,3.53958507]
[1770521589984,3.55539162,87.519,87.495,3.53958507]
[1770521593088,3.71256749,87.529,87.497,3.81656264]
[1770521594595,3.71256749,87.529,87.499,3.69938112]
[1770521594793,3.71256749,87.529,87.501,3.69938112]
[1770521595302,3.55196837,87.539,87.501,3.69938112]
[1770521596391,3.55196837,87.539,87.503,3.69938112]
[1770521598911,3.55196837,87.537,87.505,3.69938112]
[1770521600411,0.1,87.54,87.511,3.69938112]
[1770521601107,0.1,87.54,87.513,3.69938112]
[1770521602898,0.1,87.54,87.515,3.69938112]
[1770521603612,0.1,87.54,87.531,3.69938112]
[1770521603787,1e-08,87.55,87.532,3.69938112]
[1770521604110,1e-08,87.57,87.54,4.02415193]
[1770521604291,1e-08,87.57,87.56,4.02415193]
[1770521604915,1e-08,87.57,87.551,11.42191408]
[1770521605109,1e-08,87.57,87.56,4.02415193]
[1770521605306,3.55196837,87.609,87.56,4.02415193]
[1770521606309,3.55196837,87.606,87.561,11.42060963]
[1770521607010,3.55196837,87.589,87.561,11.42060963]
[1770521607404,3.55196837,87.589,87.553,11.42159111]
[1770521607809,3.55196837,87.606,87.561,11.42060963]
[1770521608116,3.55196837,87.569,87.53,4.02415193]
[1770521608294,3.55196837,87.569,87.538,11.42352189]
[1770521608695,3.55196837,87.569,87.538,15.12290301]
[1770521608911,3.55196837,87.569,87.539,3.69938112]
[1770521610412,3.55196837,87.569,87.538,11.42352189]
[1770521610413,3.55196837,87.569,87.541,3.69938112]
[1770521610601,3.55196837,87.579,87.541,3.69938112]
[1770521611196,3.55196837,87.579,87.551,3.69938112]
[1770521612916,3.55196837,87.579,87.553,3.69938112]
[1770521613911,3.55196837,87.579,87.555,3.69938112]
[1770521614713,3.55196837,87.579,87.549,15.12152763]
[1770521614918,3.55196837,87.569,87.542,3.69938112]
[1770521616314,3.82684722,87.577,87.544,3.84917239]
[1770521620319,3.82684722,87.577,87.546,3.84917239]
[1770521620623,3.82684722,87.589,87.561,3.84917239]
[1770521620824,3.82684722,87.595,87.561,3.84917239]
[1770521622301,3.82684722,87.595,87.563,3.84917239]
[1770521624419,3.82684722,87.609,87.581,3.84917239]
[1770521625734,3.82684722,87.609,87.571,3.84917239]
[1770521626027,3.82684722,87.599,87.564,39.97076423]
[1770521626406,3.82684722,87.599,87.566,11.41995751]
[1770521626597,3.82684722,87.599,87.567,3.84917239]
[1770521627420,3.82684722,87.599,87.568,11.41969669]
[1770521627618,3.82684722,87.599,87.569,3.84917239]
[1770521629116,3.82684722,87.599,87.566,3.84917239]
[1770521629308,3.82684722,87.599,87.57,11.41943587]
[1770521629922,3.82684722,87.599,87.566,3.84917239]
[1770521630124,3.82684722,87.599,87.068,127.005788]
[1770521630125,3.82684722,87.589,87.545,3.84917239]
[1770521630434,3.82684722,87.579,87.545,3.84917239]
[1770521630725,3.82684722,87.579,87.555,11.42136496]
[1770521630938,3.82684722,87.579,87.552,3.84917239]
[1770521631233,3.82684722,87.579,87.554,11.42146091]
[1770521631432,3.82684722,87.579,87.545,11.42257009]
[1770521631610,3.82684722,87.578,87.545,11.42257009]
[1770521632126,3.82684722,87.578,87.546,3.84917239]
[1770521632333,3.82684722,87.578,87.551,3.84917239]
[1770521634333,3.82684722,87.576,87.531,3.84917239]
[1770521634633,3.82684722,87.569,87.543,3.84917239]
[1770521635626,3.82684722,87.567,87.534,15.27328257]
[1770521636712,3.82684722,87.567,87.535,3.84917239]
[1770521637011,3.82684722,87.559,87.528,3.84917239]
[1770521638234,3.82684722,87.566,87.531,3.84917239]
[1770521639325,3.82684722,87.566,87.533,3.84917239]
[1770521640532,3.82684722,87.574,87.533,3.84917239]
[1770521640833,3.82684722,87.58,87.551,3.84917239]
[1770521641542,3.82684722,87.58,87.553,3.84917239]
[1770521642412,3.82684722,87.599,87.561,3.84917239]
[1770521643934,3.82684722,87.599,87.571,3.84917239]
[1770521645534,3.82684722,87.609,87.581,3.84917239]
[1770521646326,3.82684722,87.609,87.583,3.65407242]
[1770521647042,0.1,87.61,87.583,3.65407242]
[1770521647830,3.5373604,87.599,87.582,11.41787125]
[1770521648225,3.5373604,87.599,87.578,3.65407242]
[1770521648526,0.1,87.61,87.581,3.65407242]
[1770521649443,0.1,87.61,87.583,3.65407242]
[1770521651531,0.1,87.61,87.585,3.65407242]
[1770521654043,3.52782077,87.609,87.574,3.69194648]
[1770521654247,3.52782077,87.609,87.584,11.41750084]
[1770521655844,3.52782077,87.609,87.583,3.69194648]
[1770521656249,3.52782077,87.609,87.572,3.69194648]
[1770521656454,3.52782077,87.599,87.565,11.4200738]
[1770521656746,3.52782077,87.599,87.559,3.69194648]
[1770521657251,3.52782077,87.599,87.562,11.42036906]
[1770521657951,3.52782077,87.589,87.552,3.69194648]
[1770521660255,3.52782077,87.587,87.552,3.69194648]
[1770521661048,3.52782077,87.587,87.553,15.11359965]
[1770521661551,3.52782077,87.587,87.554,3.69194648]
[1770521662955,3.52782077,87.585,87.554,3.69194648]
[1770521663152,3.52782077,87.579,87.547,3.69194648]
[1770521663531,3.52782077,87.569,87.536,15.11581522]
[1770521663830,3.52782077,87.569,87.542,3.69194648]
[1770521665153,3.52782077,87.569,87.531,28.56108647]
[1770521665154,3.52782077,87.569,87.546,15.11441426]
[1770521665346,3.52782077,87.569,87.547,3.69194648]
[1770521666249,3.52782077,87.592,87.551,3.69194648]
[1770521667538,3.52782077,87.592,87.553,3.69194648]
[1770521667938,11.41669806,87.591,87.553,3.69194648]
[1770521668144,3.52782077,87.59,87.553,3.69194648]
[1770521668459,3.52782077,87.589,87.553,3.69194648]
[1770521671435,3.52782077,87.589,87.555,3.69194648]
[1770521672145,3.52782077,87.589,87.554,11.42152271]
[1770521672146,3.52782077,87.589,87.561,3.69194648]
[1770521673741,3.52782077,87.589,87.563,3.69194648]
[1770521676460,3.52782077,87.589,87.565,3.76078843]
[1770521677459,3.82750354,87.599,87.565,3.76078843]
[1770521677858,3.82750354,87.599,87.57,4.0136126]
[1770521678049,3.82750354,87.599,87.571,3.76078843]
[1770521678868,3.82750354,87.599,87.573,3.76078843]
[1770521680268,3.82750354,87.599,87.574,11.41891428]
[1770521681069,3.82750354,87.599,87.574,15.17970271]
[1770521681570,3.82750354,87.599,87.574,3.76078843]
[1770521682868,3.82750354,87.599,87.576,3.76078843]
[1770521685071,3.82750354,87.599,87.577,11.41852312]
[1770521686251,3.82750354,87.599,87.57,3.76078843]
[1770521686452,3.82750354,87.597,87.562,3.76078843]
[1770521691681,3.82750354,87.609,87.581,3.76078843]
[1770521692476,0.1,87.61,87.591,3.76078843]
[1770521693490,0.1,87.61,87.593,3.76078843]
[1770521693999,3.82750354,87.628,87.6,4.00884576]
[1770521694300,3.82750354,87.628,87.601,3.76078843]
[1770521694795,3.82750354,87.628,87.593,3.76078843]
[1770521695499,3.82750354,87.619,87.588,3.76078843]
[1770521695797,3.82750354,87.619,87.571,3.76078843]
[1770521696780,3.82750354,87.619,87.573,3.76078843]
[1770521697783,3.82750354,87.617,87.575,3.76078843]
[1770521698976,3.82750354,87.609,87.576,11.41865351]
[1770521700988,4.00884576,87.61,87.576,11.41865351]
[1770521700989,3.82750354,87.607,87.576,11.41865351]
[1770521701189,3.82750354,87.607,87.575,3.76078843]
[1770521701392,3.82750354,87.607,87.577,3.76078843]
[1770521702892,11.414407,87.609,87.558,3.76078843]
[1770521702893,3.82750354,87.599,87.558,3.76078843]
[1770521703111,3.82750354,87.598,87.559,3.76078843]
[1770521703309,3.82750354,87.598,87.561,3.76078843]
[1770521704212,3.82750354,87.598,87.571,3.76078843]
[1770521705798,3.82750354,87.598,87.572,11.41917507]
[1770521706995,3.82750354,87.598,87.572,3.83486359]
[1770521707998,3.82750354,87.598,87.573,15.25390827]
[1770521709723,3.82750354,87.598,87.574,3.83486359]
[1770521709918,3.71150229,87.618,87.574,3.83486359]
[1770521710101,3.71150229,87.618,87.576,3.83486359]
[1770521710822,3.71150229,87.618,87.581,3.83486359]
[1770521712321,3.71150229,87.616,87.582,15.25273484]
[1770521712521,3.71150229,87.616,87.583,3.648086]
[1770521714932,11.41357073,87.615,87.583,3.648086]
[1770521715109,3.89807573,87.614,87.583,3.648086]
[1770521715308,3.89807573,87.589,87.521,11.42575948]
[1770521715506,4.00884576,87.6,87.522,3.648086]
[1770521715507,3.89807573,87.549,87.522,3.648086]
[1770521715824,3.89807573,87.539,87.513,3.648086]
[1770521716022,3.89807573,87.539,87.517,3.648086]
[1770521716223,3.89807573,87.559,87.517,3.648086]
[1770521716724,3.89807573,87.559,87.524,3.648086]
[1770521716925,3.89807573,87.559,87.531,3.648086]
[1770521717223,3.89807573,87.559,87.533,3.648086]
[1770521719918,3.89807573,87.597,87.535,3.648086]
[1770521720124,3.89807573,87.589,87.551,3.648086]
[1770521721215,3.89807573,87.589,87.553,3.648086]
[1770521722831,3.89807573,87.589,87.555,3.648086]
[1770521723126,3.89807573,87.589,87.56,4.00884576]
[1770521723332,3.89807573,87.589,87.561,3.648086]
[1770521724613,3.89807573,87.589,87.563,3.648086]
[1770521726630,3.89807573,87.588,87.563,3.648086]
[1770521728935,3.89807573,87.579,87.533,3.648086]
[1770521729123,3.89807573,87.569,87.534,3.648086]
[1770521730536,3.89807573,87.549,87.506,3.648086]
[1770521730723,3.89807573,87.549,87.52,3.648086]
[1770521731527,3.89807573,87.548,87.522,3.648086]
[1770521733442,3.89807573,87.539,87.5,3.648086]
[1770521733638,3.89807573,87.527,87.491,3.648086]
[1770521735031,3.89807573,87.537,87.493,3.648086]
[1770521735430,3.89807573,87.529,87.493,3.648086]
[1770521737840,3.89807573,87.529,87.495,3.88387685]
[1770521739039,3.89807573,87.529,87.497,3.88387685]
[1770521742142,3.89807573,87.529,87.5,4.00884576]
[1770521742348,3.89807573,87.529,87.501,3.88387685]
[1770521742647,3.89807573,87.529,87.503,3.88387685]
[1770521743029,33.68239054,87.56,87.502,11.42831021]
[1770521743030,3.57173386,87.541,87.521,3.88387685]
[1770521746640,3.57173386,87.547,87.523,3.88387685]
[1770521746851,3.57173386,87.552,87.523,3.88387685]
[1770521748258,3.57173386,87.549,87.523,3.88387685]
[1770521756660,3.57173386,87.547,87.523,3.88387685]
[1770521759858,3.57173386,87.547,87.52,11.42587736]
[1770521759859,3.57173386,87.547,87.525,3.88387685]
[1770521764166,3.57173386,87.547,87.526,11.42517651]
[1770521764373,5.13032502,87.574,69.98,19.3814445]
[1770521764374,3.57173386,87.539,87.498,3.88387685]
[1770521764553,3.57173386,87.529,87.498,15.31265273]
[1770521765376,3.57173386,87.529,87.499,3.88387685]
[1770521766968,3.57173386,87.529,87.504,3.91904055]
[1770521768274,3.57173386,87.529,87.506,3.91904055]
[1770521769474,3.60933301,87.546,87.511,3.91904055]
[1770521769675,3.60933301,87.555,87.521,3.91904055]
[1770521770268,3.60933301,87.555,87.523,3.91904055]
[1770521770674,3.60933301,87.549,87.516,11.42636834]
[1770521771771,3.60933301,87.549,87.516,15.34540889]
[1770521772352,3.60933301,87.549,87.517,3.53099068]
[1770521777164,3.55589973,87.547,87.517,3.53099068]
[1770521778258,3.55589973,87.547,87.519,3.53099068]
[1770521781256,3.55589973,87.545,87.519,3.53099068]
[1770521782273,3.55589973,87.545,87.521,3.53099068]
[1770521793966,3.55589973,87.545,87.523,3.53099068]
[1770521794673,3.55589973,87.559,87.523,3.53099068]
[1770521794872,3.55589973,87.563,87.523,3.53099068]
[1770521795986,11.41923427,87.572,87.531,3.61430218]
[1770521796180,3.86928661,87.571,87.541,3.61430218]
[1770521798468,3.86928661,87.571,87.543,3.61430218]
[1770521801671,3.86928661,87.571,87.545,3.61430218]
[1770521803500,3.86928661,87.571,87.547,3.61430218]
[1770521803693,3.86928661,87.559,87.533,15.03850702]
[1770521803896,3.86928661,87.559,87.533,3.61430218]
[1770521804804,3.86928661,87.559,87.529,3.61430218]
[1770521806811,3.86928661,87.559,87.53,3.61430218]
[1770521808403,3.86928661,87.559,87.532,3.61430218]
[1770521813005,3.86928661,87.564,87.534,3.61430218]
[1770521814396,3.86928661,87.559,87.534,3.61430218]
[1770521816602,3.86928661,87.557,87.528,3.61430218]
[1770521817809,3.86928661,87.557,87.53,3.61430218]
[1770521821211,4.01541158,87.54,87.506,3.61430218]
[1770521821408,3.86928661,87.539,87.509,3.61430218]
[1770521821604,3.86928661,87.529,87.509,3.61430218]
[1770521823110,3.86928661,87.529,87.5,3.61430218]
[1770521823903,3.86928661,87.527,87.5,3.61430218]
[1770521824223,11.42491545,87.528,87.489,3.61430218]
[1770521824224,3.86928661,87.519,87.489,3.61430218]
[1770521825217,3.86928661,87.519,87.488,11.43010532]
[1770521825611,3.86928661,87.519,87.489,3.84445221]
[1770521826115,3.86928661,87.519,87.494,3.84445221]
[1770521827601,3.86928661,87.519,87.496,3.84445221]
[1770521832125,3.57374355,87.526,87.498,3.84445221]
[1770521833719,11.42478492,87.529,87.498,3.84445221]
[1770521833720,3.90200984,87.519,87.498,3.84445221]
[1770521839626,3.90200984,87.518,87.498,3.84445221]
[1770521840127,3.90200984,87.518,87.488,11.43011644]
[1770521840429,3.90200984,87.518,87.492,3.75816363]
[1770521840630,3.90200984,87.518,87.489,3.75816363]
[1770521840937,3.90200984,87.509,87.48,0.2]
[1770521841237,3.90200984,87.499,87.48,0.2]
[1770521842735,3.90200984,87.497,87.48,0.2]
[1770521855533,4.01541158,87.52,87.46,0.2]
[1770521855534,3.57618186,87.489,87.461,3.5603708]
[1770521855748,3.57618186,87.479,87.46,0.2]
[1770521856622,11.4290939,87.496,87.461,3.5603708]
[1770521856623,3.57618186,87.495,87.461,3.5603708]
[1770521856932,3.57618186,87.495,87.462,3.5603708]
[1770521857722,3.57618186,87.493,87.462,3.5603708]
[1770521858237,3.57618186,87.489,87.46,0.2]
[1770521858445,11.42935515,87.494,87.44,0.2]
[1770521858446,3.57618186,87.469,87.45,3.5603708]
[1770521861163,3.57618186,87.474,87.451,3.5603708]
[1770521862147,4.01541158,87.47,87.451,3.5603708]
[1770521862339,3.57618186,87.469,87.451,3.5603708]
[1770521869148,3.57618186,87.479,87.452,3.5603708]
[1770521877254,3.57618186,87.479,87.454,3.5603708]
[1770521880163,3.57618186,87.479,87.455,11.434452]
[1770521880363,3.57618186,87.501,87.461,3.5603708]
[1770521880551,3.57618186,87.499,87.461,3.5603708]
[1770521881267,3.57618186,87.498,87.463,3.5603708]
[1770521882552,3.57618186,87.479,87.441,3.5603708]
[1770521882760,3.57618186,87.479,87.453,3.5603708]
[1770521882962,3.57618186,87.479,87.457,3.5603708]
[1770521883771,3.57618186,87.479,87.459,3.5603708]
[1770521884454,3.57618186,87.479,87.452,3.5603708]
[1770521885772,3.86571292,87.459,87.44,0.2]
[1770521893066,3.86571292,87.459,87.44,3.87867677]
[1770521893567,3.61417282,87.449,87.413,3.67867677]
[1770521893774,3.61417282,87.439,87.413,3.67867677]
[1770521893954,3.61417282,87.469,87.431,3.67867677]
[1770521895365,3.61417282,87.469,87.433,3.67867677]
[1770521896656,3.61417282,87.469,87.42,0.2]
[1770521896657,3.61417282,87.474,87.441,3.67867677]
[1770521896868,3.61417282,87.488,87.441,3.67867677]
[1770521897869,3.61417282,87.479,87.441,3.67867677]
[1770521898774,3.61417282,87.479,87.443,3.67867677]
[1770521899672,3.61417282,87.477,87.443,3.67867677]
[1770521902679,3.61417282,87.477,87.445,3.67867677]
[1770521907680,3.61417282,87.477,87.434,28.59299585]
[1770521907681,3.61417282,87.483,87.447,3.67867677]
[1770521908777,3.61417282,87.479,87.435,3.67867677]
[1770521908957,4.0227283,87.48,87.432,11.43736603]
[1770521908958,3.61417282,87.459,87.432,11.43736603]
[1770521909161,3.61417282,87.459,87.433,3.67867677]
[1770521909978,3.61417282,87.459,87.436,11.43685401]
[1770521910280,3.61417282,87.459,87.437,3.67867677]
[1770521913281,3.61417282,87.459,87.433,3.67867677]
[1770521914979,11.43405977,87.458,87.433,3.67867677]
[1770521915189,3.61417282,87.449,87.423,3.67867677]
[1770521924400,3.62759038,87.439,87.423,3.67867677]
[1770521924693,3.62759038,87.439,87.42,3.85178502]
[1770521930092,3.62759038,87.446,87.421,3.65178502]
[1770521931884,15.06241316,87.453,87.423,3.65178502]
[1770521932080,3.62759038,87.452,87.423,3.65178502]
[1770521935106,3.62759038,87.449,87.423,3.65178502]
[1770521940091,3.62759038,87.447,87.423,3.65178502]
[1770521948117,11.43562884,87.446,87.423,3.65178502]
[1770521948321,3.55320558,87.439,87.409,3.75570631]
[1770521948519,3.55320558,87.429,87.409,3.75570631]
[1770521950301,3.55320558,87.419,87.4,0.2]
[1770521950617,3.55320558,87.409,87.4,0.2]
[1770521951521,3.55320558,87.409,87.39,3.95570631]
[1770521953217,11.43933427,87.418,87.39,3.95570631]
[1770521953425,3.55057674,87.417,87.39,3.95570631]